Workbook

Sheet Sheet1
A1: Approximating Polar Coordinate
A2: Curves With Newton Interpolation
B4: This graphing utility produces the graph
B5: of any polar coordinate function
C6: r = f(Q)
B7: and its Newton Interpolating Polynomials
B8: on any interval from Q = a to Q = b.
A10: Enter the function in terms of Q: r = f(Q) = | F10: (sin(Q))^4+(cos(Q))^2
A13: Now enter the interval for Q (in radians):
B14: Starting angle a = | D14: -3
B15: Ending angle b = | D15: 3
A18: Select the degree n (1 to 6) for the interpolating polynomial: | I18: The graph of the polar function r = | N18: =F10 -> (sin(Q))^4+(cos(Q))^2
B19: 6 | E19: n = | F19: =B19 -> 6 | J19: and the Newton Interpolating Polynomial
I21: Now trace along the two curves:
I22: Q = | J22: =Sheet1!D14+K22*Sheet2!B12 -> -1.447761194 | K22: 52
I23: r = | J23: =LOOKUP(J22,Sheet2!C3:C204,Sheet2!D3:D204) -> 0.9914167393
A24: Click each item below for suggestions and investigations | I24: r = | J24: =LOOKUP(J22,Sheet2!C3:C204,Sheet2!Y3:Y204) -> 0.725
C25: Item 1
C26: Item 2
C27: Item 3
C28: Item 4
C29: Item 5
A33: To access/download all the DIGMath Apps for Numerical Analysis
A34: Click this link: | C34: DIGMath Modules for Numerical Analysis
A36: Created by: Sheldon P. Gordon
A37: Farmingdale State College
A38: Development of this module was supported by the
A39: NSF's Division of Undergraduate Education
A40: under grants DUE-0310123 and DUE-0442160.

Sheet Sheet2
C1: Q | D1: r = f(Q) | E1: x | F1: y | H1: Tracing point | K1: r | L1: Dr | M1: D^2 r | N1: D^3 r | O1: D^4 r | P1: D^5 r | Q1: D^6 r | S1: linear | T1: quad | U1: cubic | V1: quartic | W1: quintic | X1: 6th | Y1: interpol | Z1: x | AA1: y
K2: =D205 -> 0.9804817448 | L2: =K3-K2 -> -0.1236692491 | M2: =L3-L2 -> 0.06015130069 | N2: =M3-M2 -> 0.2100721003 | O2: =N3-N2 -> -0.8937064065 | P2: =O3-O2 -> 2.260975019 | Q2: -4.521950038
C3: =Sheet1!D14 -> -3 | D3: =(SIN(Q))^4+(COS(Q))^2 -> 0.9804817448 | E3: =D3*COS($C3) -> -0.9706695704 | F3: =D3*SIN($C3) -> -0.1383655917 | H3: 0 | I3: 0 | K3: =D206 -> 0.8568124958 | L3: =K4-K3 -> -0.06351794838 | M3: 0.270223401 | N3: -0.6836343062 | O3: 1.367268612 | P3: -2.260975019 | S3: =c00+$L$2*(Q-B$16)/dQQ -> 0.9804817448 | T3: =S3+$M$2*(Q-B$16)*(Q-B$17)/2/dQQ^2 -> 0.9804817448 | U3: =T3+$N$2*(Q-B$16)*(Q-B$17)*(Q-B$18)/6/dQQ^3 -> 0.9804817448 | V3: =U3+$O$2*(Q-$B$16)*(Q-$B$17)*(Q-$B$18)*(Q-$B$19)/24/dQQ^4 -> 0.9804817448 | W3: =V3+$P$2*(Q-$B$16)*(Q-$B$17)*(Q-$B$18)*(Q-$B$19)*(Q-$B$20)/120/dQQ^5 -> 0.9804817448 | X3: =W3+$Q$2*(Q-$B$16)*(Q-$B$17)*(Q-$B$18)*(Q-$B$19)*(Q-$B$20)*(Q-$B$21)/720/dQQ^6 -> 0.9804817448 | Y3: =IF(n=1,S3,IF(n=2,T3,IF(n=3,U3,IF(n=4,V3,IF(n=5,W3,X3))))) -> 0.9804817448 | Z3: =Y3*COS($C3) -> -0.9706695704 | AA3: =Y3*SIN($C3) -> -0.1383655917
C4: =C3+Sheet2!B$12 -> -2.970149254 | D4: 0.9717411725 | E4: =D4*COS(C4) -> -0.9574950024 | F4: =D4*SIN(C4) -> -0.1657836746 | H4: =LOOKUP(Sheet1!$J$22,Sheet2!C3:C204,E3:E204) -> 0.09225091772 | I4: =LOOKUP(Sheet1!J22,Sheet2!C3:C204,F3:F204) -> -0.9871154538 | K4: 0.7932945474 | L4: 0.2067054526 | M4: -0.4134109052 | N4: =M5-M4 -> 0.6836343062 | O4: =N5-N4 -> -0.8937064065 | S4: 0.9767901255 | T4: 0.9759191443 | U4: 0.9779167511 | V4: 0.9842271204 | W4: 0.9969034202 | X4: 1.017904454 | Y4: 1.017904454 | Z4: =Y4*COS($C4) -> -1.002981509 | AA4: =Y4*SIN($C4) -> -0.1736593504
C5: =C4+Sheet2!B$12 -> -2.940298507 | D5: 0.9616229921 | E5: -0.9422065257 | F5: -0.1922645099 | K5: 1 | L5: -0.2067054526 | M5: 0.270223401 | N5: =M6-M5 -> -0.2100721003 | S5: 0.9730985061 | T5: 0.9714101426 | U5: 0.9752237555 | V5: 0.9871497482 | W5: 1.010926611 | X5: 1.050081544 | Y5: 1.050081544 | Z5: -1.02887898 | AA5: -0.2099506928
C6: =C5+Sheet2!B$12 -> -2.910447761 | D6: 0.950271288 | E6: -0.9249985828 | F6: -0.2176996612 | K6: 0.7932945474 | L6: 0.06351794838 | M6: 0.06015130069 | S6: 0.9694068867 | T6: 0.9669547397 | U6: 0.9724083459 | V6: 0.989289809 | W6: 1.022691424 | X6: 1.077363718 | Y6: 1.077363718 | Z6: -1.048710958 | AA6: -0.2468155352
C7: =C6+Sheet2!B$12 -> -2.880597015 | D7: 0.93784771 | E7: -0.9060861279 | F7: -0.2420046611 | H7: Start line: | K7: 0.8568124958 | L7: 0.1236692491 | S7: 0.9657152673 | T7: 0.9625529356 | U7: 0.9694761099 | V7: 0.9906867743 | W7: 1.032333773 | X7: 1.100087844 | Y7: 1.100087844 | Z7: -1.062831763 | AA7: -0.2838695271
C8: =C7+Sheet2!B$12 -> -2.850746269 | D8: 0.9245291717 | E8: -0.8857003394 | F8: -0.2651209121 | H8: 0 | I8: 0 | K8: 0.9804817448 | S8: 0.962023648 | T8: 0.9582047305 | U8: 0.9664326353 | V8: 0.9913794055 | W8: 1.039985432 | X8: 1.118577266 | Y8: 1.118577266 | Z8: -1.071598706 | AA8: -0.3207667578
C9: =C8+Sheet2!B$12 -> -2.820895522 | D9: 0.9105053309 | E9: -0.86408403 | F9: -0.28701698 | H9: =1.2*D3*COS(C3) -> -1.164803485 | I9: =1.2*D3*SIN(C3) -> -0.1660387101 | S9: 0.9583320286 | T9: 0.9539101241 | U9: 0.9632835097 | V9: 0.9914057549 | W9: 1.045774091 | X9: 1.133142113 | Y9: 1.133142113 | Z9: -1.075369875 | AA9: -0.3571983778
C10: =C9+Sheet2!B$12 -> -2.791044776 | D10: 0.8959758892 | E10: -0.841486852 | F10: -0.3076892458 | S10: 0.9546404092 | T10: 0.9496691166 | U10: 0.960034321 | V10: 0.9908031648 | W10: 1.049823406 | X10: 1.144079612 | Y10: 1.144079612 | Z10: -1.074502074 | AA10: -0.3928911448
C11: =C10+Sheet2!B$12 -> -2.76119403 | D11: 0.8811477478 | E11: -0.8181604027 | F11: -0.3271619004 | S11: 0.9509487898 | T11: 0.9454817079 | U11: 0.9566906567 | V11: 0.9896082681 | W11: 1.052253055 | X11: 1.151674385 | Y11: 1.151674385 | Z11: -1.069348904 | AA11: -0.4276059052
A12: delta Q = | B12: =(Sheet1!D15-Sheet1!D14)/201 -> 0.02985074627 | C12: =C11+Sheet2!B$12 -> -2.731343284 | D12: 0.8662320617 | E12: -0.7943533319 | F12: -0.3454862786 | H12: End line | S12: 0.9472571705 | T12: 0.9413478981 | U12: 0.9532581047 | V12: 0.987856988 | W12: 1.053178793 | X12: 1.156198754 | Y12: 1.156198754 | Z12: -1.060258992 | AA12: -0.4611360196
C13: =C12+Sheet2!B$12 -> -2.701492537 | D13: 0.8514412322 | E13: -0.7703065587 | F13: -0.362739545 | H13: 0 | I13: 0 | S13: 0.9435655511 | T13: 0.9372676871 | U13: 0.9497422525 | V13: 0.9855845383 | W13: 1.052712501 | X13: 1.157913039 | Y13: 1.157913039 | Z13: -1.047574365 | AA13: -0.4933057421
A14: dQQ = | B14: =(Sheet1!D15-Sheet1!D14)/n -> 1 | C14: =C13+Sheet2!B$12 -> -2.671641791 | D14: 0.8369858829 | E14: -0.746248696 | F14: -0.3790227591 | H14: =1.2*D204*COS(C204) -> -1.164803485 | I14: =1.2*D204*SIN(C204)+1 -> 1.16603871 | S14: 0.9398739317 | T14: 0.933241075 | U14: 0.946148688 | V14: 0.982825423 | W14: 1.050962243 | X14: 1.157065848 | Y14: 1.157065848 | Z14: -1.031628965 | AA14: -0.5239685628
C15: =C14+Sheet2!B$12 -> -2.641791045 | D15: 0.8230718601 | E15: -0.7223917829 | F15: -0.3944583614 | S15: 0.9361823123 | T15: 0.9292680617 | U15: 0.9424829988 | V15: 0.9796134364 | W15: 1.048032319 | X15: 1.153894372 | Y15: 1.153894372 | Z15: -1.012747311 | AA15: -0.5530055216
A16: Q00 = | B16: =QMin -> -3 | C16: =C15+Sheet2!B$12 -> -2.611940299 | D16: 0.8098973014 | E16: -0.6989274121 | F16: -0.409187135 | S16: 0.932490693 | T16: 0.9253486472 | U16: 0.9387507727 | V16: 0.9759816635 | W16: 1.04402332 | X16: 1.148624673 | Y16: 1.148624673 | Z16: -0.9912432956 | AA16: -0.5803235031
A17: Q01 = | B17: =B16+dQQ -> -2 | C17: =C16+Sheet2!B$12 -> -2.582089552 | D17: 0.7976498143 | E17: -0.6760233348 | F17: -0.4233647093 | H17: Approx Point | S17: 0.9287990736 | T17: 0.9214828316 | U17: 0.9349575973 | V17: 0.9719624795 | W17: 1.039032178 | X17: 1.141471966 | Y17: 1.141471966 | Z17: -0.9674191243 | AA17: -0.6058535191
A18: Q02 = | B18: =B17+dQQ -> -1 | C18: =C17+Sheet2!B$12 -> -2.552238806 | D18: 0.7865038049 | E18: -0.6538206127 | F18: -0.437157685 | H18: 0 | I18: 0 | S18: 0.9251074542 | T18: 0.9176706149 | U18: 0.9311090604 | V18: 0.96758755 | W18: 1.033152222 | X18: 1.132640902 | Y18: 1.132640902 | Z18: -0.9415643816 | AA18: -0.6295489884
A19: Q03 = | B19: =B18+dQQ -> 0 | C19: =C18+Sheet2!B$12 -> -2.52238806 | D19: 0.7766179939 | E19: -0.6324313752 | F19: -0.4507394636 | H19: =Sheet1!J24*COS(Sheet1!J22) -> 0.08901953706 | I19: =Sheet1!J24*SIN(Sheet1!J22) -> -0.7198748772 | S19: 0.9214158348 | T19: 0.9139119969 | U19: 0.9272107497 | V19: 0.962887831 | W19: 1.026473231 | X19: 1.122325848 | Y19: 1.122325848 | Z19: -0.9139552333 | AA19: -0.6513840201
A20: Q04 = | B20: =B19+dQQ -> 1 | C20: =C19+Sheet2!B$12 -> -2.492537313 | D20: 0.7681331566 | E20: -0.6119372263 | F20: -0.4642858789 | S20: 0.9177242155 | T20: 0.9102069778 | U20: 0.9232682529 | V20: 0.957893569 | W20: 1.019081489 | X20: 1.11071116 | Y20: 1.11071116 | Z20: -0.8848537532 | AA20: -0.6713517087
A21: Q05 = | B21: =B20+dQQ -> 2 | C21: =C20+Sheet2!B$12 -> -2.462686567 | D21: 0.7611701184 | E21: -0.5923883314 | F21: -0.477970725 | S21: 0.9140325961 | T21: 0.9065555576 | U21: 0.9192871577 | V21: 0.9526343008 | W21: 1.011059837 | X21: 1.097971455 | Y21: 1.097971455 | Z21: -0.8545073725 | AA21: -0.6894624467
A22: Q06 = | B22: =B21+dQQ -> 3 | C22: =C21+Sheet2!B$12 -> -2.432835821 | D22: 0.7558280339 | E22: -0.5738031992 | F22: -0.4919612846 | S22: 0.9103409767 | T22: 0.9029577362 | U22: 0.9152730518 | V22: 0.9471388536 | W22: 1.002487725 | X22: 1.084271879 | Y22: 1.084271879 | Z22: -0.8231484479 | AA22: -0.7057422621
C23: =C22+Sheet2!B$12 -> -2.402985075 | D23: 0.7521829752 | E23: -0.556169158 | F23: -0.506413957 | S23: 0.9066493573 | T23: 0.8994135136 | U23: 0.911231523 | V23: 0.9414353451 | W23: 0.9934412714 | X23: 1.069768377 | Y23: 1.069768377 | Z23: -0.7909939432 | AA23: -0.720231187
C24: =C23+Sheet2!B$12 -> -2.373134328 | D24: 0.7502868483 | E24: -0.5394435117 | F24: -0.5214700878 | S24: 0.902957738 | T24: 0.8959228899 | U24: 0.9071681588 | V24: 0.9355511832 | W24: 0.9839933091 | X24: 1.05460795 | Y24: 1.05460795 | Z24: -0.7582452198 | AA24: -0.7329816612
C25: =C24+Sheet2!B$12 -> -2.343283582 | D25: 0.7501666545 | E25: -0.5235553442 | F25: -0.5372520926 | S25: 0.8992661186 | T25: 0.892485865 | U25: 0.9030885472 | V25: 0.9295130663 | W25: 0.9742134445 | X25: 1.038928917 | Y25: 1.038928917 | Z25: -0.7250879304 | AA25: -0.7440569793
C26: =C25+Sheet2!B$12 -> -2.313432836 | D26: 0.7518241053 | E26: -0.508407928 | F26: -0.5538599679 | S26: 0.8955744992 | T26: 0.889102439 | U26: 0.8989982757 | V26: 0.9233469833 | W26: 0.9641681089 | X26: 1.02286117 | Y26: 1.02286117 | Z26: -0.6916920121 | AA26: -0.7535297829
C27: =C26+Sheet2!B$12 -> -2.28358209 | D27: 0.7552355983 | E27: -0.4938816788 | F27: -0.5713682668 | S27: 0.8918828798 | T27: 0.8857726118 | U27: 0.894902932 | V27: 0.9170782134 | W27: 0.9539206127 | X27: 1.006526427 | Y27: 1.006526427 | Z27: -0.6582117719 | AA27: -0.7614806045
C28: =C27+Sheet2!B$12 -> -2.253731343 | D28: 0.7603525534 | E28: -0.4798375877 | F28: -0.5898236134 | S28: 0.8881912605 | T28: 0.8824963835 | U28: 0.890808104 | V28: 0.9107313261 | W28: 0.9435311988 | X28: 0.9900384808 | Y28: 0.9900384808 | Z28: -0.6247860604 | AA28: -0.7679964663
C29: =C28+Sheet2!B$12 -> -2.223880597 | D29: 0.7671021045 | E29: -0.466121049 | F29: -0.609242814 | S29: 0.8844996411 | T29: 0.879273754 | U29: 0.8867193792 | V29: 0.9043301815 | W29: 0.9330570959 | X29: 0.9735034479 | Y29: 0.9735034479 | Z29: -0.5915385262 | AA29: -0.7731695384
C30: =C29+Sheet2!B$12 -> -2.194029851 | D30: 0.7753881369 | E30: -0.4525659972 | F30: -0.6296116113 | S30: 0.8808080217 | T30: 0.8761047233 | U30: 0.8826423455 | V30: 0.89789793 | W30: 0.9225525726 | X30: 0.9570200083 | Y30: 0.9570200083 | Z30: -0.558577948 | AA30: -0.7770958579
C31: =C30+Sheet2!B$12 -> -2.164179104 | D31: 0.7850926565 | E31: -0.4389992573 | F31: -0.6508841152 | S31: 0.8771164023 | T31: 0.8729892915 | U31: 0.8785825905 | V31: 0.8914570123 | W31: 0.9120689909 | X31: 0.9406796477 | Y31: 0.9406796477 | Z31: -0.5259986363 | AA31: -0.7798741144
C32: =C31+Sheet2!B$12 -> -2.134328358 | D32: 0.7960774694 | E32: -0.4252450086 | F32: -0.6729829269 | S32: 0.873424783 | T32: 0.8699274585 | U32: 0.8745457019 | V32: 0.8850291597 | W32: 0.9016548594 | X32: 0.9245668933 | Y32: 0.9245668933 | Z32: -0.4938808993 | AA32: -0.7816045019
C33: =C32+Sheet2!B$12 -> -2.104477612 | D33: 0.8081861503 | E33: -0.4111292629 | F33: -0.6957999589 | S33: 0.8697331636 | T33: 0.8669192244 | U33: 0.8705372674 | V33: 0.8786353936 | W33: 0.8913558872 | X33: 0.9087595475 | Y33: 0.9087595475 | Z33: -0.4622915684 | AA33: -0.7823876412
C34: =C33+Sheet2!B$12 -> -2.074626866 | D34: 0.82124627 | E34: -0.3964842531 | F34: -0.7191979374 | S34: 0.8660415442 | T34: 0.8639645891 | U34: 0.8665628748 | V34: 0.8722960262 | W34: 0.8812150375 | X34: 0.8933289186 | Y34: 0.8933289186 | Z34: -0.4312845756 | AA34: -0.7823235722
C35: =C34+Sheet2!B$12 -> -2.044776119 | D35: 0.8350718505 | E35: -0.381152635 | F35: -0.74301256 | S35: 0.8623499248 | T35: 0.8610635526 | U35: 0.8626281118 | V35: 0.8660306597 | W35: 0.8712725812 | X35: 0.8783400474 | Y35: 0.8783400474 | Z35: -0.400901579 | AA35: -0.7815108206
C36: =C35+Sheet2!B$12 -> -2.014925373 | D36: 0.8494660134 | E36: -0.3649914085 | F36: -0.7670552651 | S36: 0.8586583055 | T36: 0.858216115 | U36: 0.858738566 | V36: 0.859858187 | W36: 0.8615661501 | X36: 0.8638519316 | Y36: 0.8638519316 | Z36: -0.3711726287 | AA36: -0.7800455368
C37: =C36+Sheet2!B$12 -> -1.985074627 | D37: 0.864223784 | E37: -0.3478754692 | F37: -0.791116557 | S37: 0.8549666861 | T37: 0.8554222762 | U37: 0.8548998252 | V37: 0.8537967912 | W37: 0.8521307913 | X37: 0.8499177465 | Y37: 0.8499177465 | Z37: -0.3421168687 | AA37: -0.7780207092
C38: =C37+Sheet2!B$12 -> -1.955223881 | D38: 0.8791350094 | E38: -0.3297007129 | F38: -0.8149698183 | S38: 0.8512750667 | T38: 0.8526820363 | U38: 0.8511174772 | V38: 0.8478639459 | W38: 0.8429990197 | X38: 0.8365850622 | Y38: 0.8365850622 | Z38: -0.3137432686 | AA38: -0.7755254527
C39: =C38+Sheet2!B$12 -> -1.925373134 | D39: 0.8939873517 | E39: -0.3103866237 | F39: -0.8383755297 | S39: 0.8475834473 | T39: 0.8499953952 | U39: 0.8473971095 | V39: 0.8420764151 | W39: 0.8342008726 | X39: 0.8238960584 | Y39: 0.8238960584 | Z39: -0.2860513802 | AA39: -0.7726443703
C40: =C39+Sheet2!B$12 -> -1.895522388 | D40: 0.9085693114 | E40: -0.2898782898 | F40: -0.8610858092 | S40: 0.843891828 | T40: 0.847362353 | U40: 0.84374431 | V40: 0.836450253 | W40: 0.8257639628 | X40: 0.8118877351 | Y40: 0.8118877351 | Z40: -0.2590321126 | AA40: -0.7694569898
C41: =C40+Sheet2!B$12 -> -1.865671642 | D41: 0.9226732394 | E41: -0.2681478034 | F41: -0.882849173 | S41: 0.8402002086 | T41: 0.8447829096 | U41: 0.8401646662 | V41: 0.8310008045 | W41: 0.817713532 | X41: 0.8005921212 | Y41: 0.8005921212 | Z41: -0.2326685218 | AA41: -0.7660372729
C42: =C41+Sheet2!B$12 -> -1.835820896 | D42: 0.9360982936 | E42: -0.2451950148 | F42: -0.9034154194 | S42: 0.8365085892 | T42: 0.842257065 | U42: 0.8366637661 | V42: 0.8257427048 | W42: 0.810072505 | X42: 0.7900364785 | Y42: 0.7900364785 | Z42: -0.2069366085 | AA42: -0.7624531969
C43: =C42+Sheet2!B$12 -> -1.805970149 | D43: 0.9486532994 | E43: -0.2210476281 | F43: -0.9225405296 | S43: 0.8328169698 | T43: 0.8397848193 | U43: 0.8332471971 | V43: 0.8206898793 | W43: 0.8028615428 | X43: 0.7802435039 | Y43: 0.7802435039 | Z43: -0.1818061203 | AA43: -0.7587664067
C44: =C43+Sheet2!B$12 -> -1.776119403 | D44: 0.9601594718 | E44: -0.1957606358 | F44: -0.9399914812 | S44: 0.8291253505 | T44: 0.8373661725 | U44: 0.8299205472 | V44: 0.815855544 | W44: 0.796099096 | X44: 0.7712315272 | Y44: 0.7712315272 | Z44: -0.1572413527 | AA44: -0.7550319368
C45: =C44+Sheet2!B$12 -> -1.746268657 | D45: 0.9704529612 | E45: -0.1694151119 | F45: -0.9555508724 | S45: 0.8254337311 | T45: 0.8350011244 | U45: 0.8266894039 | V45: 0.8112522053 | W45: 0.7898014593 | X45: 0.7630147068 | Y45: 0.7630147068 | Z45: -0.1332019449 | AA45: -0.7512979999
C46: =C45+Sheet2!B$12 -> -1.71641791 | D46: 0.9793871869 | E46: -0.1421163894 | F46: -0.9690212555 | S46: 0.8217421117 | T46: 0.8326896752 | U46: 0.823559355 | V46: 0.8068916599 | W46: 0.7839828239 | X46: 0.7556032212 | Y46: 0.7556032212 | Z46: -0.109643666 | AA46: -0.7476058416
C47: =C46+Sheet2!B$12 -> -1.686567164 | D47: 0.9868349241 | E47: -0.1139916706 | F47: -0.9802290888 | S47: 0.8180504923 | T47: 0.8304318249 | U47: 0.8205359882 | V47: 0.8027849949 | W47: 0.7786553322 | X47: 0.7490034581 | Y47: 0.7490034581 | Z47: -0.0865191871 | AA47: -0.7439896575
C48: =C47+Sheet2!B$12 -> -1.656716418 | D48: 0.9926901162 | E48: -0.08518712261 | F48: -0.9890282205 | S48: 0.814358873 | T48: 0.8282275734 | U48: 0.8176248913 | V48: 0.7989425879 | W48: 0.7738291305 | X48: 0.7432181998 | Y48: 0.7432181998 | Z48: -0.06377883579 | AA48: -0.7404765712
C49: =C48+Sheet2!B$12 -> -1.626865672 | D49: 0.9968693842 | E49: -0.05586453165 | F49: -0.99530283 | S49: 0.8106672536 | T49: 0.8260769207 | U49: 0.8148316518 | V49: 0.7953741068 | W49: 0.7695124231 | X49: 0.7382468054 | Y49: 0.7382468054 | Z49: -0.04137132976 | AA49: -0.7370866698
C50: =C49+Sheet2!B$12 -> -1.597014925 | D50: 0.9993132149 | E50: -0.02619759036 | F50: -0.9989697632 | S50: 0.8069756342 | T50: 0.8239798669 | U50: 0.8121618576 | V50: 0.79208851 | W50: 0.7657115258 | X50: 0.7340853905 | Y50: 0.7340853905 | Z50: -0.01924448517 | AA50: -0.7338330943
C51: =C50+Sheet2!B$12 -> -1.567164179 | D51: 0.9999868077 | E51: 0.003632091788 | F51: -0.9999802116 | S51: 0.8032840148 | T51: 0.8219364119 | U51: 0.8096210963 | V51: 0.7890940461 | W51: 0.7624309193 | X51: 0.7307270023 | Y51: 0.7307270023 | Z51: 0.002654102558 | AA51: -0.7307221823
C52: =C51+Sheet2!B$12 -> -1.537313433 | D52: 0.9988805706 | E52: 0.03343916328 | F52: -0.9983206984 | S52: 0.7995923955 | T52: 0.8199465558 | U52: 0.8072149557 | V52: 0.7863982542 | W52: 0.759673303 | X52: 0.7281617934 | Y52: 0.7281617934 | Z52: 0.02437640877 | AA52: -0.7277536589
C53: =C52+Sheet2!B$12 -> -1.507462687 | D53: 0.9960102566 | E53: 0.06303879252 | F53: -0.994013351 | S53: 0.7959007761 | T53: 0.8180102985 | U53: 0.8049490234 | V53: 0.784007964 | W53: 0.7574396487 | X53: 0.7263771905 | Y53: 0.7263771905 | Z53: 0.04597336292 | AA53: -0.7249208734
C54: =C53+Sheet2!B$12 -> -1.47761194 | D54: 0.9914167393 | E54: 0.09225091772 | F54: -0.9871154538 | S54: 0.7922091567 | T54: 0.8161276401 | U54: 0.8028288872 | V54: 0.7819292953 | W54: 0.7557292536 | X54: 0.7253580611 | Y54: 0.7253580611 | Z54: 0.0674942677 | AA54: -0.7222110776
C55: =C54+Sheet2!B$12 -> -1.447761194 | D55: 0.9851654311 | E55: 0.1209043855 | F55: -0.9777182908 | S55: 0.7885175373 | T55: 0.8142985804 | U55: 0.8008601349 | V55: 0.7801676583 | W55: 0.7545397947 | X55: 0.7250868768 | Y55: 0.7250868768 | Z55: 0.08898625598 | AA55: -0.7196057428
C56: =C55+Sheet2!B$12 -> -1.417910448 | D56: 0.9773453515 | E56: 0.1488408813 | F56: -0.9659453028 | S56: 0.784825918 | T56: 0.8125231197 | U56: 0.799048354 | V56: 0.7787277539 | W56: 0.7538673817 | X56: 0.7255438729 | Y56: 0.7255438729 | Z56: 0.1104937874 | AA56: -0.7170809121
C57: =C56+Sheet2!B$12 -> -1.388059701 | D57: 0.9680678595 | E57: 0.1759185608 | F57: -0.9519495998 | S57: 0.7811342986 | T57: 0.8108012578 | U57: 0.7973991323 | V57: 0.7776135732 | W57: 0.7537066109 | X57: 0.7267072058 | Y57: 0.7267072058 | Z57: 0.1320581863 | AA57: -0.7146075835
C58: =C57+Sheet2!B$12 -> -1.358208955 | D58: 0.9574650679 | E58: 0.2020152949 | F58: -0.9359108809 | S58: 0.7774426792 | T58: 0.8091329947 | U58: 0.7959180575 | V58: 0.7768283975 | W58: 0.754050619 | X58: 0.7285531057 | Y58: 0.7285531057 | Z58: 0.1537172221 | AA58: -0.712152121
C59: =C58+Sheet2!B$12 -> -1.328358209 | D59: 0.9456879621 | E59: 0.2270314547 | F59: -0.9180318296 | S59: 0.7737510598 | T59: 0.8075183304 | U59: 0.7946107174 | V59: 0.7763747989 | W59: 0.7548911361 | X59: 0.7310560277 | Y59: 0.7310560277 | Z59: 0.1755047332 | AA59: -0.70967669
C60: =C59+Sheet2!B$12 -> -1.298507463 | D60: 0.9329042496 | E60: 0.2508921686 | F60: -0.898534061 | S60: 0.7700594405 | T60: 0.805957265 | U60: 0.7934826996 | V60: 0.7762546396 | W60: 0.75621854 | X60: 0.7341887986 | Y60: 0.7341887986 | Z60: 0.1974502956 | AA60: -0.7071397123
C61: =C60+Sheet2!B$12 -> -1.268656716 | D61: 0.9192959724 | E61: 0.2735489974 | F61: -0.8776537078 | S61: 0.7663678211 | T61: 0.8044497985 | U61: 0.7925395919 | V61: 0.7764690723 | W61: 0.758021909 | X61: 0.7379227609 | Y61: 0.7379227609 | Z61: 0.219578936 | AA61: -0.7044963392
C62: =C61+Sheet2!B$12 -> -1.23880597 | D62: 0.9050569142 | E62: 0.2949809888 | F62: -0.855636742 | S62: 0.7626762017 | T62: 0.8029959308 | U62: 0.791786982 | V62: 0.7770185401 | W62: 0.7602890763 | X62: 0.7422279139 | Y62: 0.7422279139 | Z62: 0.2419108904 | AA62: -0.7016989364
C63: =C62+Sheet2!B$12 -> -1.208955224 | D63: 0.8903898413 | E63: 0.3151950812 | F63: -0.8327341294 | S63: 0.7589845823 | T63: 0.8015956619 | U63: 0.7912304575 | V63: 0.7779027765 | W63: 0.763006683 | X63: 0.7470730506 | Y63: 0.7470730506 | Z63: 0.2644614078 | AA63: -0.6986975789
C64: =C63+Sheet2!B$12 -> -1.179104478 | D64: 0.8755036149 | E64: 0.3342258486 | F64: -0.809196924 | S64: 0.755292963 | T64: 0.8002489919 | U64: 0.7908756062 | V64: 0.7791208054 | W64: 0.7661602319 | X64: 0.7524258929 | Y64: 0.7524258929 | Z64: 0.2872405988 | AA64: -0.695440553
C65: =C64+Sheet2!B$12 -> -1.149253731 | D65: 0.8606102169 | E65: 0.3521345865 | F65: -0.7852714043 | S65: 0.7516013436 | T65: 0.7989559207 | U65: 0.7907280159 | V65: 0.780670941 | W65: 0.7697341411 | X65: 0.758253222 | Y65: 0.758253222 | Z65: 0.310253329 | AA65: -0.6918748589
C66: =C65+Sheet2!B$12 -> -1.119402985 | D66: 0.8459217315 | E66: 0.3690077595 | F66: -0.7611943571 | S66: 0.7479097242 | T66: 0.7977164483 | U66: 0.7907932741 | V66: 0.7825507879 | W66: 0.7737117977 | X66: 0.7645210068 | Y66: 0.7645210068 | Z66: 0.3334991563 | AA66: -0.6879467149
C67: =C66+Sheet2!B$12 -> -1.089552239 | D67: =(SIN(Q))^4+(COS(Q))^2 -> 0.8316473248 | E67: 0.3849548411 | F67: -0.7371886075 | S67: =c00+$L$2*(Q-B$16)/dQQ -> 0.7442181048 | T67: =S67+$M$2*(Q-B$16)*(Q-B$17)/2/dQQ^2 -> 0.7965305748 | U67: =T67+$N$2*(Q-B$16)*(Q-B$17)*(Q-B$18)/6/dQQ^3 -> 0.7910769687 | V67: =U67+$O$2*(Q-$B$16)*(Q-$B$17)*(Q-$B$18)*(Q-$B$19)/24/dQQ^4 -> 0.7847572414 | W67: =V67+$P$2*(Q-$B$16)*(Q-$B$17)*(Q-$B$18)*(Q-$B$19)*(Q-$B$20)/120/dQQ^5 -> 0.7780756109 | X67: =W67+$Q$2*(Q-$B$16)*(Q-$B$17)*(Q-$B$18)*(Q-$B$19)*(Q-$B$20)*(Q-$B$21)/720/dQQ^6 -> 0.7711945288 | Y67: =IF(n=1,S67,IF(n=2,T67,IF(n=3,U67,IF(n=4,V67,IF(n=5,W67,X67))))) -> 0.7711945288 | Z67: 0.3569723108 | AA67: -0.6836020557
C68: =C67+Sheet2!B$12 -> -1.059701493 | D68: 0.8179902663 | E68: =D68*COS(C68) -> 0.400105595 | F68: =D68*SIN(C68) -> -0.7134588906 | S68: 0.7405264855 | T68: 0.7953983002 | U68: 0.7915846872 | V68: 0.7872864868 | W68: 0.7828070664 | X68: 0.7782385032 | Y68: 0.7782385032 | Z68: =Y68*COS($C68) -> 0.3806617172 | AA68: =Y68*SIN($C68) -> -0.6787870247
C69: =C68+Sheet2!B$12 -> -1.029850746 | D69: 0.8051450345 | E69: 0.4146068545 | F69: -0.6901881503 | S69: 0.7368348661 | T69: 0.7943196244 | U69: 0.7923220176 | V69: 0.7901340001 | W69: 0.7878867791 | X69: 0.7856171976 | Y69: 0.7856171976 | Z69: 0.4045510575 | AA69: -0.6734484562
C70: =C69+Sheet2!B$12 -> -1 | D70: 0.7932945474 | E70: 0.4286188732 | F70: -0.667534344 | S70: 0.7331432467 | T70: 0.7932945474 | U70: 0.7932945474 | V70: 0.7932945474 | W70: 0.7932945474 | X70: 0.7932945474 | Y70: 0.7932945474 | Z70: 0.4286188732 | AA70: -0.667534344
C71: =C70+Sheet2!B$12 -> -0.9701492537 | D71: 0.7826075575 | E71: 0.4423113279 | F71: -0.6456278172 | S71: 0.7294516273 | T71: 0.7923230693 | U71: 0.7945078644 | V71: 0.7967621854 | W71: 0.7990094064 | X71: 0.801234267 | Y71: 0.801234267 | Z71: 0.4528387047 | AA71: -0.6609942952
C72: =C71+Sheet2!B$12 -> -0.9402985075 | D72: 0.7732362492 | E72: 0.455859062 | F72: -0.6245693017 | S72: 0.725760008 | T72: 0.79140519 | U72: 0.7959675562 | V72: 0.8005302613 | W72: 0.8050096818 | X72: 0.8093999595 | Y72: 0.8093999595 | Z72: 0.4771792667 | AA72: -0.6537799645
C73: =C72+Sheet2!B$12 -> -0.9104477612 | D73: 0.7653140711 | E73: 0.4694376656 | F73: -0.6044285778 | S73: 0.7220683886 | T73: 0.7905409095 | U73: 0.7976792107 | V73: 0.8045914123 | W73: 0.8112730428 | X73: 0.8177552217 | Y73: 0.8177552217 | Z73: 0.5016046572 | AA73: -0.6458454695
C74: =C73+Sheet2!B$12 -> -0.8805970149 | D74: 0.7589538363 | E74: 0.483218992 | F74: -0.5852438222 | S74: 0.7183767692 | T74: 0.7897302279 | U74: 0.7996484154 | V74: 0.8089375665 | W74: 0.8177765567 | X74: 0.8262637464 | Y74: 0.8262637464 | Z74: 0.5260745985 | AA74: -0.6371477815
C75: =C74+Sheet2!B$12 -> -0.8507462687 | D75: 0.7542461154 | E75: 0.497366712 | F75: -0.5670216542 | S75: 0.7146851498 | T75: 0.7889731452 | U75: 0.8018807582 | V75: 0.8135599419 | W75: 0.8244967417 | X75: 0.8348894221 | Y75: 0.8348894221 | Z75: 0.5505447073 | AA75: -0.6276470923
C76: =C75+Sheet2!B$12 -> -0.8208955224 | D76: 0.7512579469 | E76: 0.5120320063 | F76: -0.5497378714 | S76: 0.7109935305 | T76: 0.7882696612 | U76: 0.8043818267 | V76: 0.8184490474 | W76: 0.8314096208 | X76: 0.8435964287 | Y76: 0.8435964287 | Z76: 0.5749667923 | AA76: -0.6173071539
C77: =C76+Sheet2!B$12 -> -0.7910447761 | D77: 0.7500318829 | E77: 0.5273494956 | F77: -0.5333388556 | S77: 0.7073019111 | T77: 0.7876197762 | U77: 0.8071572086 | V77: 0.8235946818 | W77: 0.8384907753 | X77: 0.85234933 | Y77: 0.85234933 | Z77: 0.5992891762 | AA77: -0.6060955895
C78: =C77+Sheet2!B$12 -> -0.7611940299 | D78: 0.7505853826 | E78: 0.5434335007 | F78: -0.5177436112 | S78: 0.7036102917 | T78: 0.7870234899 | U78: 0.8102124917 | V78: 0.8289859347 | W78: 0.8457153985 | X78: 0.8611131637 | Y78: 0.8611131637 | Z78: 0.6234570401 | AA78: -0.5939841747
C79: =C78+Sheet2!B$12 -> -0.7313432836 | D79: 0.7529105642 | E79: 0.5603747202 | F79: -0.5028463887 | S79: 0.6999186723 | T79: 0.7864808025 | U79: 0.8135532636 | V79: 0.8346111858 | W79: 0.8530583491 | X79: 0.8698535277 | Y79: 0.8698535277 | Z79: 0.6474127876 | AA79: -0.5809490873
C80: =C79+Sheet2!B$12 -> -0.7014925373 | D80: 0.7569743167 | E80: 0.5782374024 | F80: -0.4885198283 | S80: 0.696227053 | T80: 0.785991714 | U80: 0.8171851121 | V80: 0.8404581055 | W80: 0.8604942051 | X80: 0.878536663 | Y80: 0.878536663 | Z80: 0.6710964252 | AA80: -0.5669711248
C81: =C80+Sheet2!B$12 -> -0.671641791 | D81: 0.7627187717 | E81: 0.5970570788 | F81: -0.4746185515 | S81: 0.6925354336 | T81: 0.7855562243 | U81: 0.8211136249 | V81: 0.8465136542 | W81: 0.867997317 | X81: 0.8871295341 | Y81: 0.8871295341 | Z81: 0.694445958 | AA81: -0.552035888
C82: =C81+Sheet2!B$12 -> -0.6417910448 | D82: 0.7700621274 | E82: 0.6168389141 | F82: -0.460983117 | S82: 0.6888438142 | T82: 0.7851743334 | U82: 0.8253443897 | V82: 0.8527640831 | W82: 0.8755418617 | X82: 0.8955999054 | Y82: 0.8955999054 | Z82: 0.7173977962 | AA82: -0.5361339316
C83: =C82+Sheet2!B$12 -> -0.6119402985 | D83: 0.7788998133 | E83: 0.6375567133 | F83: -0.4474442495 | S83: 0.6851521948 | T83: 0.7848460414 | U83: 0.8298829941 | V83: 0.8591949336 | W83: 0.8831018958 | X83: 0.9039164152 | Y83: 0.9039164152 | Z83: 0.7398871703 | AA83: -0.5192608794
C84: =C83+Sheet2!B$12 -> -0.5820895522 | D84: 0.7891059795 | E84: 0.6591526137 | F84: -0.4338272454 | S84: 0.6814605755 | T84: 0.7845713482 | U84: 0.834735026 | V84: 0.8657910374 | W84: 0.8906514097 | X84: 0.9120486455 | Y84: 0.9120486455 | Z84: 0.7618485528 | AA84: -0.5014175051
C85: =C84+Sheet2!B$12 -> -0.552238806 | D85: 0.8005352888 | E85: 0.6815374723 | F85: -0.4199564531 | S85: 0.6777689561 | T85: 0.7843502538 | U85: 0.8399060731 | V85: 0.8725365168 | W85: 0.8981643805 | X85: 0.9199671898 | Y85: 0.9199671898 | Z85: 0.7832160829 | AA85: -0.482609778
C86: =C85+Sheet2!B$12 -> -0.5223880597 | D86: 0.8130249862 | E86: 0.704591947 | F86: -0.40565973 | S86: 0.6740773367 | T86: 0.7841827583 | U86: 0.8454017229 | V86: 0.8794147844 | W86: 0.905614826 | X86: 0.9276437168 | Y86: 0.9276437168 | Z86: 0.8039239919 | AA86: -0.4628488743
C87: =C86+Sheet2!B$12 -> -0.4925373134 | D87: 0.8263972166 | E87: 0.7281682505 | F87: -0.390772771 | S87: 0.6703857173 | T87: 0.7840688617 | U87: 0.8512275633 | V87: 0.8864085432 | W87: 0.9129768585 | X87: 0.9350510309 | Y87: 0.9350510309 | Z87: 0.8239070263 | AA87: -0.4421511533
C88: =C87+Sheet2!B$12 -> -0.4626865672 | D88: 0.8404615576 | E88: 0.7520925457 | F88: -0.375143216 | S88: 0.666694098 | T88: 0.7840085639 | U88: 0.857389182 | V88: 0.8934997866 | W88: 0.9202247378 | X88: 0.9421631305 | Y88: 0.9421631305 | Z88: 0.8431008663 | AA88: -0.4205381003
C89: =C88+Sheet2!B$12 -> -0.4328358209 | D89: 0.8550177308 | E89: 0.7761679319 | F89: -0.3586344399 | S89: 0.6630024786 | T89: 0.7840018649 | U89: 0.8638921667 | V89: 0.9006697984 | W89: 0.9273329251 | X89: 0.9489552618 | Y89: 0.9489552618 | Z89: 0.8614425368 | AA89: -0.3980362354
C90: =C89+Sheet2!B$12 -> -0.4029850746 | D90: 0.8698584544 | E90: 0.8001779639 | F90: -0.3411289446 | S90: 0.6593108592 | T90: 0.7840487648 | U90: 0.870742105 | V90: 0.9078991527 | W90: 0.9342761369 | X90: 0.9554039701 | Y90: 0.9554039701 | Z90: 0.8788708089 | AA90: -0.3746769906
C91: =C90+Sheet2!B$12 -> -0.3731343284 | D91: 0.8847723944 | E91: 0.8238906276 | F91: -0.3225312754 | S91: 0.6556192398 | T91: 0.7841492635 | U91: 0.8779445847 | V91: 0.9151677143 | W91: 0.941029398 | X91: 0.9614871478 | Y91: 0.9614871478 | Z91: 0.8953265887 | AA91: -0.3504965549
C92: =C91+Sheet2!B$12 -> -0.3432835821 | D92: 0.8995471741 | E92: 0.847062692 | F92: -0.3027703984 | S92: 0.6519276205 | T92: 0.784303361 | U92: 0.8855051936 | V92: 0.922454638 | W92: 0.9475680954 | X92: 0.9671840796 | Y92: 0.9671840796 | Z92: 0.910753292 | AA92: -0.325535689
C93: =C92+Sheet2!B$12 -> -0.3134328358 | D93: 0.9139723985 | E93: 0.8694443436 | F93: -0.2818014879 | S93: 0.6482360011 | T93: 0.7845110574 | U93: 0.8934295192 | V93: 0.9297383692 | W93: 0.9538680319 | X93: 0.9724754833 | Y93: 0.9724754833 | Z93: 0.9250972017 | AA93: -0.2998395122
C94: =C93+Sheet2!B$12 -> -0.2835820896 | D94: 0.9278426504 | E94: 0.8907840063 | F94: -0.2596070842 | S94: 0.6445443817 | T94: 0.7847723527 | U94: 0.9017231494 | V94: 0.9369966438 | W94: 0.9599054797 | X94: 0.9773435489 | Y94: 0.9773435489 | Z94: 0.9383078063 | AA94: -0.2734572601
C95: =C94+Sheet2!B$12 -> -0.2537313433 | D95: 0.9409604155 | E95: 0.9108332434 | F95: -0.2361976002 | S95: 0.6408527623 | T95: 0.7850872468 | U95: 0.9103916718 | V95: 0.9442064879 | W95: 0.9656572339 | X95: 0.9817719734 | Y95: 0.9817719734 | Z95: 0.9503381184 | AA95: -0.2464420184
C96: =C95+Sheet2!B$12 -> -0.223880597 | D96: 0.9531388949 | E96: 0.9293516383 | F96: -0.2116111652 | S96: 0.637161143 | T96: 0.7854557397 | U96: 0.9194406742 | V96: 0.951344218 | W96: 0.971100666 | X96: 0.9857459931 | Y96: 0.9857459931 | Z96: 0.9611449691 | AA96: -0.2188504313
C97: =C96+Sheet2!B$12 -> -0.1940298507 | D97: 0.9642046653 | E97: 0.9461115482 | F97: -0.1859128152 | S97: 0.6334695236 | T97: 0.7858778314 | U97: 0.9288757442 | V97: 0.9583854412 | W97: 0.9762137777 | X97: 0.9892524119 | Y97: 0.9892524119 | Z97: 0.9706892787 | AA97: -0.1907423885
C98: =C97+Sheet2!B$12 -> -0.1641791045 | D98: 0.9740001486 | E98: 0.9609026293 | F98: -0.1591930478 | S98: 0.6297779042 | T98: 0.786353522 | U98: 0.9387024696 | V98: 0.9653050548 | W98: 0.9809752546 | X98: 0.9922796275 | Y98: 0.9922796275 | Z98: 0.9789363014 | AA98: -0.1621806921
C99: =C98+Sheet2!B$12 -> -0.1343283582 | D99: 0.9823858557 | E99: 0.9735360368 | F99: -0.1315657801 | S99: 0.6260862848 | T99: 0.7868828115 | U99: 0.9489264381 | V99: 0.9720772467 | W99: 0.9853645191 | X99: 0.9948176533 | Y99: 0.9948176533 | Z99: 0.9858558426 | AA99: -0.1332307055
C100: =C99+Sheet2!B$12 -> -0.1044776119 | D100: 0.9892423729 | E100: 0.9838482094 | F100: -0.1031657559 | S100: 0.6223946655 | T100: 0.7874656998 | U100: 0.9595532374 | V100: 0.9786754948 | W100: 0.989361785 | X100: 0.9968581379 | Y100: 0.9968581379 | Z100: 0.991422447 | AA100: -0.1039599861
C101: =C100+Sheet2!B$12 -> -0.07462686567 | D101: 0.9944720625 | E101: 0.9917041559 | F101: -0.07414546684 | S101: 0.6187030461 | T101: 0.7881021869 | U101: 0.9705884552 | V101: 0.9850725678 | W101: 0.9929481103 | X101: 0.9983943809 | Y101: 0.9983943809 | Z101: 0.9956155574 | AA101: -0.07443790555
C102: =C101+Sheet2!B$12 -> -0.0447761194 | D102: 0.9980004529 | E102: 0.9970001741 | F102: -0.04467165691 | S102: 0.6150114267 | T102: 0.7887922729 | U102: 0.9820376792 | V102: 0.9912405248 | W102: 0.996105451 | X102: 0.999421346 | Y102: 0.999421346 | Z102: 0.998419643 | AA102: -0.04473525773
C103: =C102+Sheet2!B$12 -> -0.01492537313 | D103: 0.9997772994 | E103: 0.9996659429 | F103: -0.01492149523 | S103: 0.6113198073 | T103: 0.7895359577 | U103: 0.9939064971 | V103: 0.9971507149 | W103: 0.9988167148 | X103: 0.99993567 | Y103: 0.99993567 | Z103: 0.9998242959 | AA103: -0.01492385888
C104: =C103+Sheet2!B$12 -> 0.01492537313 | D104: 0.9997772994 | E104: 0.9996659429 | F104: 0.01492149523 | S104: 0.607628188 | T104: 0.7903332414 | U104: 1.006200497 | V104: 1.002773778 | W104: 1.001065815 | X104: 0.99993567 | Y104: 0.99993567 | Z104: 0.9998242959 | AA104: 0.01492385888
C105: =C104+Sheet2!B$12 -> 0.0447761194 | D105: 0.9980004529 | E105: =D105*COS(C105) -> 0.9970001741 | F105: =D105*SIN(C105) -> 0.04467165691 | S105: 0.6039365686 | T105: 0.7911841239 | U105: 1.018925266 | V105: 1.008079644 | W105: 1.002837723 | X105: 0.999421346 | Y105: 0.999421346 | Z105: 0.998419643 | AA105: 0.04473525773
C106: =C105+Sheet2!B$12 -> 0.07462686567 | D106: 0.9944720625 | E106: 0.9917041559 | F106: 0.07414546684 | S106: 0.6002449492 | T106: 0.7920886052 | U106: 1.032086392 | V106: 1.013037534 | W106: 1.004118523 | X106: 0.9983943809 | Y106: 0.9983943809 | Z106: 0.9956155574 | AA106: 0.07443790555
C107: =C106+Sheet2!B$12 -> 0.1044776119 | D107: 0.9892423729 | E107: 0.9838482094 | F107: 0.1031657559 | S107: 0.5965533298 | T107: 0.7930466854 | U107: 1.045689462 | V107: 1.017615958 | W107: 1.004895465 | X107: 0.9968581379 | Y107: 0.9968581379 | Z107: 0.991422447 | AA107: 0.1039599861
C108: =C107+Sheet2!B$12 -> 0.1343283582 | D108: 0.9823858557 | E108: 0.9735360368 | F108: 0.1315657801 | S108: 0.5928617105 | T108: 0.7940583644 | U108: 1.059740066 | V108: 1.021782718 | W108: 1.005157019 | X108: 0.9948176533 | Y108: 0.9948176533 | Z108: 0.9858558426 | AA108: 0.1332307055
C109: =C108+Sheet2!B$12 -> 0.1641791045 | D109: 0.9740001486 | E109: 0.9609026293 | F109: 0.1591930478 | S109: 0.5891700911 | T109: 0.7951236423 | U109: 1.074243789 | V109: 1.025504906 | W109: 1.004892928 | X109: 0.9922796275 | Y109: 0.9922796275 | Z109: 0.9789363014 | AA109: 0.1621806921
C110: =C109+Sheet2!B$12 -> 0.1940298507 | D110: 0.9642046653 | E110: 0.9461115482 | F110: 0.1859128152 | S110: 0.5854784717 | T110: 0.796242519 | U110: 1.089206221 | V110: 1.028748904 | W110: 1.004094261 | X110: 0.9892524119 | Y110: 0.9892524119 | Z110: 0.9706892787 | AA110: 0.1907423885
C111: =C110+Sheet2!B$12 -> 0.223880597 | D111: 0.9531388949 | E111: 0.9293516383 | F111: 0.2116111652 | S111: 0.5817868523 | T111: 0.7974149946 | U111: 1.104632948 | V111: 1.031480384 | W111: 1.00275347 | X111: 0.9857459931 | Y111: 0.9857459931 | Z111: 0.9611449691 | AA111: 0.2188504313
C112: =C111+Sheet2!B$12 -> 0.2537313433 | D112: 0.9409604155 | E112: 0.9108332434 | F112: 0.2361976002 | S112: 0.5780952329 | T112: 0.798641069 | U112: 1.120529558 | V112: 1.033664309 | W112: 1.000864437 | X112: 0.9817719734 | Y112: 0.9817719734 | Z112: 0.9503381184 | AA112: 0.2464420184
C113: =C112+Sheet2!B$12 -> 0.2835820896 | D113: 0.9278426504 | E113: 0.8907840063 | F113: 0.2596070842 | S113: 0.5744036136 | T113: 0.7999207422 | U113: 1.136901639 | V113: 1.035264933 | W113: 0.9984225336 | X113: 0.9773435489 | Y113: 0.9773435489 | Z113: 0.9383078063 | AA113: 0.2734572601
C114: =C113+Sheet2!B$12 -> 0.3134328358 | D114: 0.9139723985 | E114: 0.8694443436 | F114: 0.2818014879 | S114: 0.5707119942 | T114: 0.8012540143 | U114: 1.153754779 | V114: 1.036245799 | W114: 0.9954246733 | X114: 0.9724754833 | Y114: 0.9724754833 | Z114: 0.9250972017 | AA114: 0.2998395122
C115: =C114+Sheet2!B$12 -> 0.3432835821 | D115: 0.8995471741 | E115: 0.847062692 | F115: 0.3027703984 | S115: 0.5670203748 | T115: 0.8026408852 | U115: 1.171094566 | V115: 1.036569741 | W115: 0.991869363 | X115: 0.9671840796 | Y115: 0.9671840796 | Z115: 0.910753292 | AA115: 0.325535689
C116: =C115+Sheet2!B$12 -> 0.3731343284 | D116: 0.8847723944 | E116: 0.8238906276 | F116: 0.3225312754 | S116: 0.5633287554 | T116: 0.804081355 | U116: 1.188926587 | V116: 1.036198884 | W116: 0.9877567584 | X116: 0.9614871478 | Y116: 0.9614871478 | Z116: 0.8953265887 | AA116: 0.3504965549
C117: =C116+Sheet2!B$12 -> 0.4029850746 | D117: 0.8698584544 | E117: 0.8001779639 | F117: 0.3411289446 | S117: 0.5596371361 | T117: 0.8055754236 | U117: 1.207256429 | V117: 1.035094643 | W117: 0.9830887169 | X117: 0.9554039701 | Y117: 0.9554039701 | Z117: 0.8788708089 | AA117: 0.3746769906
C118: =C117+Sheet2!B$12 -> 0.4328358209 | D118: 0.8550177308 | E118: 0.7761679319 | F118: 0.3586344399 | S118: 0.5559455167 | T118: 0.8071230911 | U118: 1.226089682 | V118: 1.033217723 | W118: 0.9778688515 | X118: 0.9489552618 | Y118: 0.9489552618 | Z118: 0.8614425368 | AA118: 0.3980362354
C119: =C118+Sheet2!B$12 -> 0.4626865672 | D119: 0.8404615576 | E119: 0.7520925457 | F119: 0.375143216 | S119: 0.5522538973 | T119: 0.8087243574 | U119: 1.245431931 | V119: 1.03052812 | W119: 0.9721025842 | X119: 0.9421631305 | Y119: 0.9421631305 | Z119: 0.8431008663 | AA119: 0.4205381003
C120: =C119+Sheet2!B$12 -> 0.4925373134 | D120: 0.8263972166 | E120: 0.7281682505 | F120: 0.390772771 | S120: 0.5485622779 | T120: 0.8103792225 | U120: 1.265288766 | V120: 1.02698512 | W120: 0.9657971997 | X120: 0.9350510309 | Y120: 0.9350510309 | Z120: 0.8239070263 | AA120: 0.4421511533
C121: =C120+Sheet2!B$12 -> 0.5223880597 | D121: 0.8130249862 | E121: 0.704591947 | F121: 0.40565973 | S121: 0.5448706586 | T121: 0.8120876865 | U121: 1.285665773 | V121: 1.022547299 | W121: 0.9589618988 | X121: 0.9276437168 | Y121: 0.9276437168 | Z121: 0.8039239919 | AA121: 0.4628488743
C122: =C121+Sheet2!B$12 -> 0.552238806 | D122: 0.8005352888 | E122: 0.6815374723 | F122: 0.4199564531 | S122: 0.5411790392 | T122: 0.8138497493 | U122: 1.306568541 | V122: 1.017172524 | W122: 0.9516078522 | X122: 0.9199671898 | Y122: 0.9199671898 | Z122: 0.7832160829 | AA122: 0.482609778
C123: =C122+Sheet2!B$12 -> 0.5820895522 | D123: 0.7891059795 | E123: 0.6591526137 | F123: 0.4338272454 | S123: 0.5374874198 | T123: 0.815665411 | U123: 1.328002657 | V123: 1.010817952 | W123: 0.9437482542 | X123: 0.9120486455 | Y123: 0.9120486455 | Z123: 0.7618485528 | AA123: 0.5014175051
C124: =C123+Sheet2!B$12 -> 0.6119402985 | D124: 0.7788998133 | E124: 0.6375567133 | F124: 0.4474442495 | S124: 0.5337958004 | T124: 0.8175346715 | U124: 1.349973708 | V124: 1.003440032 | W124: 0.9353983757 | X124: 0.9039164152 | Y124: 0.9039164152 | Z124: 0.7398871703 | AA124: 0.5192608794
C125: =C124+Sheet2!B$12 -> 0.6417910448 | D125: 0.7700621274 | E125: 0.6168389141 | F125: 0.460983117 | S125: 0.5301041811 | T125: 0.8194575308 | U125: 1.372487284 | V125: 0.9949945016 | W125: 0.9265756186 | X125: 0.8955999054 | Y125: 0.8955999054 | Z125: 0.7173977962 | AA125: 0.5361339316
C126: =C125+Sheet2!B$12 -> 0.671641791 | D126: 0.7627187717 | E126: 0.5970570788 | F126: 0.4746185515 | S126: 0.5264125617 | T126: 0.821433989 | U126: 1.39554897 | V126: 0.9854363886 | W126: 0.9172995687 | X126: 0.8871295341 | Y126: 0.8871295341 | Z126: 0.694445958 | AA126: 0.552035888
C127: =C126+Sheet2!B$12 -> 0.7014925373 | D127: 0.7569743167 | E127: 0.5782374024 | F127: 0.4885198283 | S127: 0.5227209423 | T127: 0.823464046 | U127: 1.419164356 | V127: 0.9747200121 | W127: 0.9075920497 | X127: 0.878536663 | Y127: 0.878536663 | Z127: 0.6710964252 | AA127: 0.5669711248
C128: =C127+Sheet2!B$12 -> 0.7313432836 | D128: 0.7529105642 | E128: 0.5603747202 | F128: 0.5028463887 | S128: 0.5190293229 | T128: 0.8255477019 | U128: 1.443339028 | V128: 0.9627989816 | W128: 0.8974771766 | X128: 0.8698535277 | Y128: 0.8698535277 | Z128: 0.6474127876 | AA128: 0.5809490873
C129: =C128+Sheet2!B$12 -> 0.7611940299 | D129: 0.7505853826 | E129: 0.5434335007 | F129: 0.5177436112 | S129: 0.5153377036 | T129: 0.8276849566 | U129: 1.468078575 | V129: 0.9496261966 | W129: 0.8869814092 | X129: 0.8611131637 | Y129: 0.8611131637 | Z129: 0.6234570401 | AA129: 0.5939841747
C130: =C129+Sheet2!B$12 -> 0.7910447761 | D130: 0.7500318829 | E130: 0.5273494956 | F130: 0.5333388556 | S130: 0.5116460842 | T130: 0.8298758102 | U130: 1.493388584 | V130: 0.9351538473 | W130: 0.8761336062 | X130: 0.85234933 | Y130: 0.85234933 | Z130: 0.5992891762 | AA130: 0.6060955895
C131: =C130+Sheet2!B$12 -> 0.8208955224 | D131: =(SIN(Q))^4+(COS(Q))^2 -> 0.7512579469 | E131: 0.5120320063 | F131: 0.5497378714 | S131: =c00+$L$2*(Q-B$16)/dQQ -> 0.5079544648 | T131: =S131+$M$2*(Q-B$16)*(Q-B$17)/2/dQQ^2 -> 0.8321202626 | U131: =T131+$N$2*(Q-B$16)*(Q-B$17)*(Q-B$18)/6/dQQ^3 -> 1.519274643 | V131: =U131+$O$2*(Q-$B$16)*(Q-$B$17)*(Q-$B$18)*(Q-$B$19)/24/dQQ^4 -> 0.919333414 | W131: =V131+$P$2*(Q-$B$16)*(Q-$B$17)*(Q-$B$18)*(Q-$B$19)*(Q-$B$20)/120/dQQ^5 -> 0.8649650781 | X131: =W131+$Q$2*(Q-$B$16)*(Q-$B$17)*(Q-$B$18)*(Q-$B$19)*(Q-$B$20)*(Q-$B$21)/720/dQQ^6 -> 0.8435964287 | Y131: =IF(n=1,S131,IF(n=2,T131,IF(n=3,U131,IF(n=4,V131,IF(n=5,W131,X131))))) -> 0.8435964287 | Z131: 0.5749667923 | AA131: 0.6173071539
C132: =C131+Sheet2!B$12 -> 0.8507462687 | D132: 0.7542461154 | E132: 0.497366712 | F132: 0.5670216542 | S132: 0.5042628454 | T132: 0.8344183138 | U132: 1.545742339 | V132: 0.9021156676 | W132: 0.8535096412 | X132: 0.8348894221 | Y132: 0.8348894221 | Z132: =Y132*COS($C132) -> 0.5505447073 | AA132: =Y132*SIN($C132) -> 0.6276470923
C133: =C132+Sheet2!B$12 -> 0.8805970149 | D133: 0.7589538363 | E133: 0.483218992 | F133: 0.5852438222 | S133: 0.5005712261 | T133: 0.8367699639 | U133: 1.572797261 | V133: 0.8834506694 | W133: 0.8418036711 | X133: 0.8262637464 | Y133: 0.8262637464 | Z133: 0.5260745985 | AA133: 0.6371477815
C134: =C133+Sheet2!B$12 -> 0.9104477612 | D134: 0.7653140711 | E134: 0.4694376656 | F134: 0.6044285778 | S134: 0.4968796067 | T134: 0.8391752128 | U134: 1.600444995 | V134: 0.8632877711 | W134: 0.8298861564 | X134: 0.8177552217 | Y134: 0.8177552217 | Z134: 0.5016046572 | AA134: 0.6458454695
C135: =C134+Sheet2!B$12 -> 0.9402985075 | D135: 0.7732362492 | E135: 0.455859062 | F135: 0.6245693017 | S135: 0.4931879873 | T135: 0.8416340606 | U135: 1.62869113 | V135: 0.8415756146 | W135: 0.8177987519 | X135: 0.8093999595 | Y135: 0.8093999595 | Z135: 0.4771792667 | AA135: 0.6537799645
C136: =C135+Sheet2!B$12 -> 0.9701492537 | D136: 0.7826075575 | E136: 0.4423113279 | F136: 0.6456278172 | S136: 0.4894963679 | T136: 0.8441465072 | U136: 1.657541254 | V136: 0.8182621324 | W136: 0.8055858326 | X136: 0.801234267 | Y136: 0.801234267 | Z136: 0.4528387047 | AA136: 0.6609942952
C137: =C136+Sheet2!B$12 -> 1 | D137: 0.7932945474 | E137: 0.4286188732 | F137: 0.667534344 | S137: 0.4858047486 | T137: 0.8467125527 | U137: 1.687000954 | V137: 0.7932945474 | W137: 0.7932945474 | X137: 0.7932945474 | Y137: 0.7932945474 | Z137: 0.4286188732 | AA137: 0.667534344
C138: =C137+Sheet2!B$12 -> 1.029850746 | D138: 0.8051450345 | E138: 0.4146068545 | F138: 0.6901881503 | S138: 0.4821131292 | T138: 0.849332197 | U138: 1.717075817 | V138: 0.7666193728 | W138: 0.780974872 | X138: 0.7856171976 | Y138: 0.7856171976 | Z138: 0.4045510575 | AA138: 0.6734484562
C139: =C138+Sheet2!B$12 -> 1.059701493 | D139: 0.8179902663 | E139: 0.400105595 | F139: 0.7134588906 | S139: 0.4784215098 | T139: 0.8520054401 | U139: 1.747771433 | V139: 0.7381824121 | W139: 0.7686796633 | X139: 0.7782385032 | Y139: 0.7782385032 | Z139: 0.3806617172 | AA139: 0.6787870247
C140: =C139+Sheet2!B$12 -> 1.089552239 | D140: 0.8316473248 | E140: 0.3849548411 | F140: 0.7371886075 | S140: 0.4747298904 | T140: 0.8547322821 | U140: 1.779093387 | V140: 0.7079287595 | W140: 0.7564647123 | X140: 0.7711945288 | Y140: 0.7711945288 | Z140: 0.3569723108 | AA140: 0.6836020557
C141: =C140+Sheet2!B$12 -> 1.119402985 | D141: 0.8459217315 | E141: 0.3690077595 | F141: 0.7611943571 | S141: 0.4710382711 | T141: 0.8575127229 | U141: 1.811047268 | V141: 0.6758027994 | W141: 0.7443887982 | X141: 0.7645210068 | Y141: 0.7645210068 | Z141: 0.3334991563 | AA141: 0.6879467149
C142: =C141+Sheet2!B$12 -> 1.149253731 | D142: 0.8606102169 | E142: 0.3521345865 | F142: 0.7852714043 | S142: 0.4673466517 | T142: 0.8603467626 | U142: 1.843638664 | V142: 0.6417482066 | W142: 0.7325137418 | X142: 0.758253222 | Y142: 0.758253222 | Z142: 0.310253329 | AA142: 0.6918748589
C143: =C142+Sheet2!B$12 -> 1.179104478 | D143: 0.8755036149 | E143: 0.3342258486 | F143: 0.809196924 | S143: 0.4636550323 | T143: 0.8632344011 | U143: 1.876873163 | V143: 0.6057079463 | W143: 0.720904459 | X143: 0.7524258929 | Y143: 0.7524258929 | Z143: 0.2872405988 | AA143: 0.695440553
C144: =C143+Sheet2!B$12 -> 1.208955224 | D144: 0.8903898413 | E144: 0.3151950812 | F144: 0.8327341294 | S144: 0.4599634129 | T144: 0.8661756384 | U144: 1.910756351 | V144: 0.5676242741 | W144: 0.7096290146 | X144: 0.7470730506 | Y144: 0.7470730506 | Z144: 0.2644614078 | AA144: 0.6986975789
C145: =C144+Sheet2!B$12 -> 1.23880597 | D145: 0.9050569142 | E145: 0.2949809888 | F145: 0.855636742 | S145: 0.4562717936 | T145: 0.8691704746 | U145: 1.945293817 | V145: 0.527438736 | W145: 0.6987586755 | X145: 0.7422279139 | Y145: 0.7422279139 | Z145: 0.2419108904 | AA145: 0.7016989364
C146: =C145+Sheet2!B$12 -> 1.268656716 | D146: 0.9192959724 | E146: 0.2735489974 | F146: 0.8776537078 | S146: 0.4525801742 | T146: 0.8722189097 | U146: 1.980491149 | V146: 0.4850921685 | W146: 0.6883679648 | X146: 0.7379227609 | Y146: 0.7379227609 | Z146: 0.219578936 | AA146: 0.7044963392
C147: =C146+Sheet2!B$12 -> 1.298507463 | D147: 0.9329042496 | E147: 0.2508921686 | F147: 0.898534061 | S147: 0.4488885548 | T147: 0.8753209436 | U147: 2.016353934 | V147: 0.4405246983 | W147: 0.6785347151 | X147: 0.7341887986 | Y147: 0.7341887986 | Z147: 0.1974502956 | AA147: 0.7071397123
C148: =C147+Sheet2!B$12 -> 1.328358209 | D148: 0.9456879621 | E148: 0.2270314547 | F148: 0.9180318296 | S148: 0.4451969354 | T148: 0.8784765763 | U148: 2.05288776 | V148: 0.3936757426 | W148: 0.6693401219 | X148: 0.7310560277 | Y148: 0.7310560277 | Z148: 0.1755047332 | AA148: 0.70967669
C149: =C148+Sheet2!B$12 -> 1.358208955 | D149: 0.9574650679 | E149: 0.2020152949 | F149: 0.9359108809 | S149: 0.4415053161 | T149: 0.8816858078 | U149: 2.090098215 | V149: 0.3444840091 | W149: 0.6608687977 | X149: 0.7285531057 | Y149: 0.7285531057 | Z149: 0.1537172221 | AA149: 0.712152121
C150: =C149+Sheet2!B$12 -> 1.388059701 | D150: 0.9680678595 | E150: 0.1759185608 | F150: 0.9519495998 | S150: 0.4378136967 | T150: 0.8849486382 | U150: 2.127990886 | V150: 0.2928874958 | W150: 0.6532088252 | X150: 0.7267072058 | Y150: 0.7267072058 | Z150: 0.1320581863 | AA150: 0.7146075835
C151: =C150+Sheet2!B$12 -> 1.417910448 | D151: 0.9773453515 | E151: 0.1488408813 | F151: 0.9659453028 | S151: 0.4341220773 | T151: 0.8882650675 | U151: 2.166571361 | V151: 0.2388234909 | W151: 0.6464518109 | X151: 0.7255438729 | Y151: 0.7255438729 | Z151: 0.1104937874 | AA151: 0.7170809121
C152: =C151+Sheet2!B$12 -> 1.447761194 | D152: 0.9851654311 | E152: 0.1209043855 | F152: 0.9777182908 | S152: 0.4304304579 | T152: 0.8916350956 | U152: 2.205845228 | V152: 0.1822285734 | W152: 0.6406929388 | X152: 0.7250868768 | Y152: 0.7250868768 | Z152: 0.08898625598 | AA152: 0.7196057428
C153: =C152+Sheet2!B$12 -> 1.47761194 | D153: 0.9914167393 | E153: 0.09225091772 | F153: 0.9871154538 | S153: 0.4267388386 | T153: 0.8950587225 | U153: 2.245818074 | V153: 0.1230386124 | W153: 0.6360310242 | X153: 0.7253580611 | Y153: 0.7253580611 | Z153: 0.0674942677 | AA153: 0.7222110776
C154: =C153+Sheet2!B$12 -> 1.507462687 | D154: 0.9960102566 | E154: 0.06303879252 | F154: 0.994013351 | S154: 0.4230472192 | T154: 0.8985359483 | U154: 2.286495487 | V154: 0.06118876742 | W154: 0.6325685667 | X154: 0.7263771905 | Y154: 0.7263771905 | Z154: 0.04597336292 | AA154: 0.7249208734
C155: =C154+Sheet2!B$12 -> 1.537313433 | D155: 0.9988805706 | E155: 0.03343916328 | F155: 0.9983206984 | S155: 0.4193555998 | T155: 0.9020667729 | U155: 2.327883056 | V155: -0.003386511473 | W155: 0.6304118044 | X155: 0.7281617934 | Y155: 0.7281617934 | Z155: 0.02437640877 | AA155: 0.7277536589
C156: =C155+Sheet2!B$12 -> 1.567164179 | D156: 0.9999868077 | E156: 0.003632091788 | F156: 0.9999802116 | S156: 0.4156639804 | T156: 0.9056511963 | U156: 2.369986367 | V156: -0.07075348393 | W156: 0.6296707671 | X156: 0.7307270023 | Y156: 0.7307270023 | Z156: 0.002654102558 | AA156: 0.7307221823
C157: =C156+Sheet2!B$12 -> 1.597014925 | D157: 0.9993132149 | E157: -0.02619759036 | F157: 0.9989697632 | S157: 0.4119723611 | T157: 0.9092892186 | U157: 2.412811008 | V157: -0.1409791192 | W157: 0.6304593301 | X157: 0.7340853905 | Y157: 0.7340853905 | Z157: -0.01924448517 | AA157: 0.7338330943
C158: =C157+Sheet2!B$12 -> 1.626865672 | D158: 0.9968693842 | E158: -0.05586453165 | F158: 0.99530283 | S158: 0.4082807417 | T158: 0.9129808398 | U158: 2.456362568 | V158: -0.2141310961 | W158: 0.6328952676 | X158: 0.7382468054 | Y158: 0.7382468054 | Z158: -0.04137132976 | AA158: 0.7370866698
C159: =C158+Sheet2!B$12 -> 1.656716418 | D159: 0.9926901162 | E159: -0.08518712261 | F159: 0.9890282205 | S159: 0.4045891223 | T159: 0.9167260598 | U159: 2.500646633 | V159: -0.290277803 | W159: 0.6371003066 | X159: 0.7432181998 | Y159: 0.7432181998 | Z159: -0.06377883579 | AA159: 0.7404765712
C160: =C159+Sheet2!B$12 -> 1.686567164 | D160: 0.9868349241 | E160: -0.1139916706 | F160: 0.9802290888 | S160: 0.4008975029 | T160: 0.9205248786 | U160: 2.545668791 | V160: -0.3694883381 | W160: 0.6432001801 | X160: 0.7490034581 | Y160: 0.7490034581 | Z160: -0.0865191871 | AA160: 0.7439896575
C161: =C160+Sheet2!B$12 -> 1.71641791 | D161: 0.9793871869 | E161: -0.1421163894 | F161: 0.9690212555 | S161: 0.3972058836 | T161: 0.9243772963 | U161: 2.591434631 | V161: -0.4518325089 | W161: 0.6513246809 | X161: 0.7556032212 | Y161: 0.7556032212 | Z161: -0.109643666 | AA161: 0.7476058416
C162: =C161+Sheet2!B$12 -> 1.746268657 | D162: 0.9704529612 | E162: -0.1694151119 | F162: 0.9555508724 | S162: 0.3935142642 | T162: 0.9282833128 | U162: 2.63794974 | V162: -0.5373808327 | W162: 0.6616077152 | X162: 0.7630147068 | Y162: 0.7630147068 | Z162: -0.1332019449 | AA162: 0.7512979999
C163: =C162+Sheet2!B$12 -> 1.776119403 | D163: 0.9601594718 | E163: -0.1957606358 | F163: 0.9399914812 | S163: 0.3898226448 | T163: 0.9322429281 | U163: 2.685219705 | V163: -0.6262045363 | W163: 0.6741873561 | X163: 0.7712315272 | Y163: 0.7712315272 | Z163: -0.1572413527 | AA163: 0.7550319368
C164: =C163+Sheet2!B$12 -> 1.805970149 | D164: 0.9486532994 | E164: -0.2210476281 | F164: 0.9225405296 | S164: 0.3861310254 | T164: 0.9362561423 | U164: 2.733250115 | V164: -0.7183755562 | W164: 0.6892058974 | X164: 0.7802435039 | Y164: 0.7802435039 | Z164: -0.1818061203 | AA164: 0.7587664067
C165: =C164+Sheet2!B$12 -> 1.835820896 | D165: 0.9360982936 | E165: -0.2451950148 | F165: 0.9034154194 | S165: 0.3824394061 | T165: 0.9403229554 | U165: 2.782046557 | V165: -0.8139665385 | W165: 0.7068099069 | X165: 0.7900364785 | Y165: 0.7900364785 | Z165: -0.2069366085 | AA165: 0.7624531969
C166: =C165+Sheet2!B$12 -> 1.865671642 | D166: 0.9226732394 | E166: -0.2681478034 | F166: 0.882849173 | S166: 0.3787477867 | T166: 0.9444433672 | U166: 2.831614618 | V166: -0.9130508388 | W166: 0.7271502801 | X166: 0.8005921212 | Y166: 0.8005921212 | Z166: -0.2326685218 | AA166: 0.7660372729
C167: =C166+Sheet2!B$12 -> 1.895522388 | D167: 0.9085693114 | E167: -0.2898782898 | F167: 0.8610858092 | S167: 0.3750561673 | T167: 0.948617378 | U167: 2.881959887 | V167: -1.015702522 | W167: 0.7503822938 | X167: 0.8118877351 | Y167: 0.8118877351 | Z167: -0.2590321126 | AA167: 0.7694569898
C168: =C167+Sheet2!B$12 -> 1.925373134 | D168: 0.8939873517 | E168: -0.3103866237 | F168: 0.8383755297 | S168: 0.3713645479 | T168: 0.9528449875 | U168: 2.933087951 | V168: -1.121996364 | W168: 0.7766656598 | X168: 0.8238960584 | Y168: 0.8238960584 | Z168: -0.2860513802 | AA168: 0.7726443703
C169: =C168+Sheet2!B$12 -> 1.955223881 | D169: 0.8791350094 | E169: =D169*COS(C169) -> -0.3297007129 | F169: =D169*SIN(C169) -> 0.8149698183 | S169: 0.3676729286 | T169: 0.9571261959 | U169: 2.985004398 | V169: -1.232007848 | W169: 0.8061645782 | X169: 0.8365850622 | Y169: 0.8365850622 | Z169: -0.3137432686 | AA169: 0.7755254527
C170: =C169+Sheet2!B$12 -> 1.985074627 | D170: 0.864223784 | E170: -0.3478754692 | F170: 0.791116557 | S170: 0.3639813092 | T170: 0.9614610032 | U170: 3.037714816 | V170: -1.345813169 | W170: 0.8390477915 | X170: 0.8499177465 | Y170: 0.8499177465 | Z170: -0.3421168687 | AA170: 0.7780207092
C171: =C170+Sheet2!B$12 -> 2.014925373 | D171: 0.8494660134 | E171: -0.3649914085 | F171: 0.7670552651 | S171: 0.3602896898 | T171: 0.9658494093 | U171: 3.091224791 | V171: -1.463489231 | W171: 0.8754886375 | X171: 0.8638519316 | Y171: 0.8638519316 | Z171: -0.3711726287 | AA171: 0.7800455368
C172: =C171+Sheet2!B$12 -> 2.044776119 | D172: 0.8350718505 | E172: -0.381152635 | F172: 0.74301256 | S172: 0.3565980704 | T172: 0.9702914142 | U172: 3.145539913 | V172: -1.585113645 | W172: 0.9156651033 | X172: 0.8783400474 | Y172: 0.8783400474 | Z172: -0.400901579 | AA172: 0.7815108206
C173: =C172+Sheet2!B$12 -> 2.074626866 | D173: 0.82124627 | E173: -0.3964842531 | F173: 0.7191979374 | S173: 0.3529064511 | T173: 0.974787018 | U173: 3.200665769 | V173: -1.710764737 | W173: 0.9597598792 | X173: 0.8933289186 | Y173: 0.8933289186 | Z173: -0.4312845756 | AA173: 0.7823235722
C174: =C173+Sheet2!B$12 -> 2.104477612 | D174: 0.8081861503 | E174: -0.4111292629 | F174: 0.6957999589 | S174: 0.3492148317 | T174: 0.9793362206 | U174: 3.256607946 | V174: -1.840521537 | W174: 1.007960411 | X174: 0.9087595475 | Y174: 0.9087595475 | Z174: -0.4622915684 | AA174: 0.7823876412
C175: =C174+Sheet2!B$12 -> 2.134328358 | D175: 0.7960774694 | E175: -0.4252450086 | F175: 0.6729829269 | S175: 0.3455232123 | T175: 0.983939022 | U175: 3.313372032 | V175: -1.974463789 | W175: 1.060458957 | X175: 0.9245668933 | Y175: 0.9245668933 | Z175: -0.4938808993 | AA175: 0.7816045019
C176: =C175+Sheet2!B$12 -> 2.164179104 | D176: 0.7850926565 | E176: -0.4389992573 | F176: 0.6508841152 | S176: 0.3418315929 | T176: 0.9885954223 | U176: 3.370963615 | V176: -2.112671943 | W176: 1.117452635 | X176: 0.9406796477 | Y176: 0.9406796477 | Z176: -0.5259986363 | AA176: 0.7798741144
C177: =C176+Sheet2!B$12 -> 2.194029851 | D177: 0.7753881369 | E177: -0.4525659972 | F177: 0.6296116113 | S177: 0.3381399736 | T177: 0.9933054215 | U177: 3.429388282 | V177: -2.255227162 | W177: 1.179143483 | X177: 0.9570200083 | Y177: 0.9570200083 | Z177: -0.558577948 | AA177: 0.7770958579
C178: =C177+Sheet2!B$12 -> 2.223880597 | D178: 0.7671021045 | E178: -0.466121049 | F178: 0.609242814 | S178: 0.3344483542 | T178: 0.9980690195 | U178: 3.488651622 | V178: -2.402211315 | W178: 1.245738509 | X178: 0.9735034479 | Y178: 0.9735034479 | Z178: -0.5915385262 | AA178: 0.7731695384
C179: =C178+Sheet2!B$12 -> 2.253731343 | D179: 0.7603525534 | E179: -0.4798375877 | F179: 0.5898236134 | S179: 0.3307567348 | T179: 1.002886216 | U179: 3.548759222 | V179: -2.553706984 | W179: 1.317449747 | X179: 0.9900384808 | Y179: 0.9900384808 | Z179: -0.6247860604 | AA179: 0.7679964663
C180: =C179+Sheet2!B$12 -> 2.28358209 | D180: 0.7552355983 | E180: -0.4938816788 | F180: 0.5713682668 | S180: 0.3270651154 | T180: 1.007757012 | U180: 3.609716669 | V180: -2.709797458 | W180: 1.394494305 | X180: 1.006526427 | Y180: 1.006526427 | Z180: -0.6582117719 | AA180: 0.7614806045
C181: =C180+Sheet2!B$12 -> 2.313432836 | D181: 0.7518241053 | E181: -0.508407928 | F181: 0.5538599679 | S181: 0.3233734961 | T181: 1.012681406 | U181: 3.671529552 | V181: -2.870566738 | W181: 1.477094426 | X181: 1.02286117 | Y181: 1.02286117 | Z181: -0.6916920121 | AA181: 0.7535297829
C182: =C181+Sheet2!B$12 -> 2.343283582 | D182: 0.7501666545 | E182: -0.5235553442 | F182: 0.5372520926 | S182: 0.3196818767 | T182: 1.0176594 | U182: 3.734203458 | V182: -3.036099532 | W182: 1.565477537 | X182: 1.038928917 | Y182: 1.038928917 | Z182: -0.7250879304 | AA182: 0.7440569793
C183: =C182+Sheet2!B$12 -> 2.373134328 | D183: 0.7502868483 | E183: -0.5394435117 | F183: 0.5214700878 | S183: 0.3159902573 | T183: 1.022690992 | U183: 3.797743975 | V183: -3.20648126 | W183: 1.659876304 | X183: 1.05460795 | Y183: 1.05460795 | Z183: -0.7582452198 | AA183: 0.7329816612
C184: =C183+Sheet2!B$12 -> 2.402985075 | D184: 0.7521829752 | E184: -0.556169158 | F184: 0.506413957 | S184: 0.3122986379 | T184: 1.027776183 | U184: 3.86215669 | V184: -3.38179805 | W184: 1.760528685 | X184: 1.069768377 | Y184: 1.069768377 | Z184: -0.7909939432 | AA184: 0.720231187
C185: =C184+Sheet2!B$12 -> 2.432835821 | D185: 0.7558280339 | E185: -0.5738031992 | F185: 0.4919612846 | S185: 0.3086070186 | T185: 1.032914973 | U185: 3.927447192 | V185: -3.56213674 | W185: 1.867677983 | X185: 1.084271879 | Y185: 1.084271879 | Z185: -0.8231484479 | AA185: 0.7057422621
C186: =C185+Sheet2!B$12 -> 2.462686567 | D186: 0.7611701184 | E186: -0.5923883314 | F186: 0.477970725 | S186: 0.3049153992 | T186: 1.038107362 | U186: 3.993621067 | V186: -3.747584878 | W186: 1.981572903 | X186: 1.097971455 | Y186: 1.097971455 | Z186: -0.8545073725 | AA186: 0.6894624467
C187: =C186+Sheet2!B$12 -> 2.492537313 | D187: 0.7681331566 | E187: -0.6119372263 | F187: 0.4642858789 | S187: 0.3012237798 | T187: 1.043353349 | U187: 4.060683905 | V187: -3.938230721 | W187: 2.102467601 | X187: 1.11071116 | Y187: 1.11071116 | Z187: -0.8848537532 | AA187: 0.6713517087
C188: =C187+Sheet2!B$12 -> 2.52238806 | D188: 0.7766179939 | E188: -0.6324313752 | F188: 0.4507394636 | S188: 0.2975321604 | T188: 1.048652936 | U188: 4.128641291 | V188: -4.134163236 | W188: 2.23062174 | X188: 1.122325848 | Y188: 1.122325848 | Z188: -0.9139552333 | AA188: 0.6513840201
C189: =C188+Sheet2!B$12 -> 2.552238806 | D189: 0.7865038049 | E189: -0.6538206127 | F189: 0.437157685 | S189: 0.2938405411 | T189: 1.054006121 | U189: 4.197498815 | V189: -4.3354721 | W189: 2.366300543 | X189: 1.132640902 | Y189: 1.132640902 | Z189: -0.9415643816 | AA189: 0.6295489884
C190: =C189+Sheet2!B$12 -> 2.582089552 | D190: 0.7976498143 | E190: -0.6760233348 | F190: 0.4233647093 | S190: 0.2901489217 | T190: 1.059412905 | U190: 4.267262064 | V190: -4.542247699 | W190: 2.509774848 | X190: 1.141471966 | Y190: 1.141471966 | Z190: -0.9674191243 | AA190: 0.6058535191
C191: =C190+Sheet2!B$12 -> 2.611940299 | D191: 0.8098973014 | E191: -0.6989274121 | F191: 0.409187135 | S191: 0.2864573023 | T191: 1.064873288 | U191: 4.337936625 | V191: -4.754581128 | W191: 2.66132116 | X191: 1.148624673 | Y191: 1.148624673 | Z191: -0.9912432956 | AA191: 0.5803235031
C192: =C191+Sheet2!B$12 -> 2.641791045 | D192: 0.8230718601 | E192: -0.7223917829 | F192: 0.3944583614 | S192: 0.2827656829 | T192: 1.07038727 | U192: 4.409528086 | V192: -4.972564193 | W192: 2.821221703 | X192: 1.153894372 | Y192: 1.153894372 | Z192: -1.012747311 | AA192: 0.5530055216
C193: =C192+Sheet2!B$12 -> 2.671641791 | D193: 0.8369858829 | E193: -0.746248696 | F193: 0.3790227591 | S193: 0.2790740636 | T193: 1.07595485 | U193: 4.482042035 | V193: -5.196289409 | W193: 2.98976448 | X193: 1.157065848 | Y193: 1.157065848 | Z193: -1.031628965 | AA193: 0.5239685628
C194: =C193+Sheet2!B$12 -> 2.701492537 | D194: 0.8514412322 | E194: -0.7703065587 | F194: 0.362739545 | S194: 0.2753824442 | T194: 1.08157603 | U194: 4.55548406 | V194: -5.425850001 | W194: 3.167243317 | X194: 1.157913039 | Y194: 1.157913039 | Z194: -1.047574365 | AA194: 0.4933057421
C195: =C194+Sheet2!B$12 -> 2.731343284 | D195: =(SIN(Q))^4+(COS(Q))^2 -> 0.8662320617 | E195: -0.7943533319 | F195: 0.3454862786 | S195: =c00+$L$2*(Q-B$16)/dQQ -> 0.2716908248 | T195: =S195+$M$2*(Q-B$16)*(Q-B$17)/2/dQQ^2 -> 1.087250808 | U195: =T195+$N$2*(Q-B$16)*(Q-B$17)*(Q-B$18)/6/dQQ^3 -> 4.629859748 | V195: =U195+$O$2*(Q-$B$16)*(Q-$B$17)*(Q-$B$18)*(Q-$B$19)/24/dQQ^4 -> -5.661339902 | W195: =V195+$P$2*(Q-$B$16)*(Q-$B$17)*(Q-$B$18)*(Q-$B$19)*(Q-$B$20)/120/dQQ^5 -> 3.353957926 | X195: =W195+$Q$2*(Q-$B$16)*(Q-$B$17)*(Q-$B$18)*(Q-$B$19)*(Q-$B$20)*(Q-$B$21)/720/dQQ^6 -> 1.156198754 | Y195: =IF(n=1,S195,IF(n=2,T195,IF(n=3,U195,IF(n=4,V195,IF(n=5,W195,X195))))) -> 1.156198754 | Z195: -1.060258992 | AA195: 0.4611360196
C196: =C195+Sheet2!B$12 -> 2.76119403 | D196: 0.8811477478 | E196: -0.8181604027 | F196: 0.3271619004 | S196: 0.2679992054 | T196: 1.092979185 | U196: 4.705174688 | V196: -5.902853756 | W196: 3.550213953 | X196: 1.151674385 | Y196: 1.151674385 | Z196: =Y196*COS($C196) -> -1.069348904 | AA196: =Y196*SIN($C196) -> 0.4276059052
C197: =C196+Sheet2!B$12 -> 2.791044776 | D197: 0.8959758892 | E197: -0.841486852 | F197: 0.3076892458 | S197: 0.2643075861 | T197: 1.098761161 | U197: 4.781434466 | V197: -6.150486917 | W197: 3.756323031 | X197: 1.144079612 | Y197: 1.144079612 | Z197: -1.074502074 | AA197: 0.3928911448
C198: =C197+Sheet2!B$12 -> 2.820895522 | D198: 0.9105053309 | E198: -0.86408403 | F198: 0.28701698 | S198: 0.2606159667 | T198: 1.104596736 | U198: 4.858644671 | V198: -6.404335448 | W198: 3.972602838 | X198: 1.133142113 | Y198: 1.133142113 | Z198: -1.075369875 | AA198: 0.3571983778
C199: =C198+Sheet2!B$12 -> 2.850746269 | D199: 0.9245291717 | E199: -0.8857003394 | F199: 0.2651209121 | S199: 0.2569243473 | T199: 1.11048591 | U199: 4.936810889 | V199: -6.664496121 | W199: 4.199377148 | X199: 1.118577266 | Y199: 1.118577266 | Z199: -1.071598706 | AA199: 0.3207667578
C200: =C199+Sheet2!B$12 -> 2.880597015 | D200: 0.93784771 | E200: -0.9060861279 | F200: 0.2420046611 | S200: 0.2532327279 | T200: 1.116428682 | U200: 5.01593871 | V200: -6.931066418 | W200: 4.436975883 | X200: 1.100087844 | Y200: 1.100087844 | Z200: -1.062831763 | AA200: 0.2838695271
... 11 more rows

Sheet Sheet3
